fUSD/lending_fUSD_20250911
["ID","MTS","AMOUNT","RATE_DAILY","PERIOD"]
[384922066,1757627459827,-400.0,0.00027671,7]
[384922067,1757627459836,-400.0,0.00027671,7]
[384922068,1757627459845,-502.36,0.00027671,7]
[384922069,1757627459854,-400.0,0.00027671,7]
[384922070,1757627459863,-406.20501889,0.00027671,7]
[384922071,1757627459873,-474.04,0.00027671,7]
[384922072,1757627459882,-607.91,0.00027671,7]
[384922073,1757627459891,-400.0,0.00027671,7]
[384922074,1757627459901,-400.0,0.00027671,7]
[384922075,1757627459910,-400.0,0.00027671,7]
[384922076,1757627459919,-400.0,0.00027671,7]
[384922077,1757627459930,-400.0,0.00027671,7]
[384922078,1757627459939,-422.29,0.00027671,7]
[384922079,1757627459949,-400.0,0.00027671,7]
[384922080,1757627459958,-521.3,0.00027671,7]
[384922081,1757627459968,-400.0,0.00027671,2]
[384922082,1757627459977,-578.72,0.00027671,7]
[384922083,1757627459986,-1554.85,0.00027671,7]
[384922084,1757627459995,-400.0,0.00027671,7]
[384922085,1757627460004,-400.0,0.00027671,7]
[384922086,1757627460014,-400.0,0.00027671,7]
[384922087,1757627460023,-240.99917623,0.00027671,7]
[384922088,1757627460032,-400.0,0.00027671,7]
[384922089,1757627460041,-400.0,0.00027671,7]
[384922090,1757627460051,-339.14039556,0.00027671,7]
[384922091,1757627460061,-400.0,0.00027671,7]
[384922092,1757627460071,-1824.84,0.00027671,7]
[384922093,1757627460080,-1088.02,0.00027671,7]
[384922094,1757627460089,-400.0,0.00027671,7]
[384922095,1757627460098,-400.0,0.00027671,7]
[384922096,1757627460108,-400.0,0.00027671,7]
[384922097,1757627460119,-404.82924375,0.00027671,7]
[384922098,1757627460130,-1205.28,0.00027671,7]
[384922099,1757627460140,-432.28,0.00027671,7]
[384922100,1757627460149,-400.0,0.00027671,7]
[384922101,1757627460160,-414.36166338,0.00027671,7]
[384922102,1757627460170,-400.0,0.00027671,7]
[384922103,1757627460180,-400.0,0.00027671,7]
[384922104,1757627460189,-400.0,0.00027671,7]
[384922105,1757627460199,-400.0,0.00027671,7]
[384922106,1757627460208,-400.0,0.00027671,7]
[384922107,1757627460218,-832.75,0.00027671,7]
[384922108,1757627460227,-400.0,0.00027671,7]
[384922109,1757627460236,-400.0,0.00027671,7]
[384922110,1757627460245,-400.0,0.00027671,7]
[384922111,1757627460254,-400.0,0.00027671,7]
[384922112,1757627460264,-400.0,0.00027671,7]
[384922113,1757627460274,-400.0,0.00027671,7]
[384922114,1757627460283,-400.0,0.00027671,7]
[384922115,1757627460294,-400.0,0.00027671,7]
[384922116,1757627460308,-400.0,0.00027671,7]
[384922117,1757627460319,-400.0,0.00027671,7]
[384922118,1757627460331,-904.85,0.00027671,7]
[384922119,1757627460340,-400.0,0.00027671,7]
[384922120,1757627460350,-685.8,0.00027671,7]
[384922121,1757627460360,-517.06,0.00027671,7]
[384922122,1757627460369,-1008.26,0.00027671,7]
[384922123,1757627460379,-400.0,0.00027671,7]
[384922124,1757627460388,-400.0,0.00027671,7]
[384922125,1757627460397,-655.45,0.00027671,7]
[384922126,1757627460407,-1113.46,0.00027671,7]
[384922127,1757627460416,-400.0,0.00027671,7]
[384922128,1757627460425,-151.0,0.00027671,7]
[384922129,1757627460435,-400.0,0.00027671,7]
[384922130,1757627460443,-400.0,0.00027671,7]
[384922131,1757627460452,-400.0,0.00027671,7]
[384922132,1757627460462,-400.0,0.00027671,7]
[384922133,1757627460471,-400.0,0.00027671,7]
[384922134,1757627460480,-593.77,0.00027671,7]
[384922135,1757627460492,-807.62,0.00027671,7]
[384922136,1757627460502,-400.0,0.00027671,7]
[384922137,1757627460512,-738.23,0.00027671,7]
[384922138,1757627460522,-567.18,0.00027671,7]
[384922139,1757627460531,-249.92712422,0.00027671,7]
[384922140,1757627460540,-166.473686,0.00027671,7]
[384922141,1757627460550,-400.0,0.00027671,7]
[384922142,1757627460560,-400.0,0.00027671,7]
[384922143,1757627460570,-400.0,0.00027671,7]
[384922144,1757627460579,-500.0,0.00027671,10]
[384922145,1757627460589,-400.0,0.00027671,7]
[384922146,1757627460598,-500.0,0.00027671,10]
[384922147,1757627460608,-500.0,0.00027671,10]
[384922148,1757627460618,-405.41095549,0.00027671,10]
[384922149,1757627460627,-400.0,0.00027671,7]
[384922150,1757627460636,-464.24,0.00027671,7]
[384922151,1757627460648,-738.23,0.00027671,7]
[384922152,1757627460657,-400.0,0.00027671,7]
[384922153,1757627460666,-400.0,0.00027671,7]
[384922154,1757627460675,-607.0,0.00027671,7]
[384922155,1757627460684,-400.0,0.00027671,7]
[384922156,1757627460693,-433.56237709,0.00027671,7]
[384922157,1757627460703,-400.0,0.00027671,7]
[384922158,1757627460713,-588.76,0.00027671,7]
[384922159,1757627460723,-400.0,0.00027671,7]
[384922160,1757627460733,-595.56,0.00027671,7]
[384922161,1757627460742,-400.0,0.00027671,7]
[384922162,1757627460754,-541.07,0.00027671,7]
[384922163,1757627460765,-439.31,0.00027671,7]
[384922164,1757627460774,-400.0,0.00027671,7]
[384922165,1757627460783,-400.0,0.00027671,7]
[384922166,1757627460793,-400.0,0.00027671,7]
[384922167,1757627460804,-400.0,0.00027671,7]
[384922168,1757627460814,-995.46,0.00027671,7]
[384922169,1757627460824,-400.0,0.00027671,7]
[384922170,1757627460836,-1889.23,0.00027671,7]
[384922171,1757627460845,-400.0,0.00027671,7]
[384922172,1757627460854,-151.0,0.00027671,7]
[384922173,1757627460864,-404.78,0.00027671,7]
[384922174,1757627460873,-1159.7,0.00027671,7]
[384922175,1757627460882,-400.0,0.00027671,7]
[384922176,1757627460891,-400.0,0.00027671,7]
[384922177,1757627460900,-400.0,0.00027671,7]
[384922178,1757627460909,-400.0,0.00027671,7]
[384922179,1757627460919,-400.0,0.00027671,7]
[384922180,1757627460928,-400.0,0.00027671,7]
[384922181,1757627460940,-892.23,0.00027671,7]
[384922182,1757627460951,-400.0,0.00027671,7]
[384922183,1757627460962,-400.0,0.00027671,7]
[384922184,1757627460973,-568.18,0.00027671,7]
[384922185,1757627460982,-151.0,0.00027671,7]
[384922186,1757627460993,-403.03,0.00027671,7]
[384922187,1757627461003,-1401.18,0.00027671,7]
[384922188,1757627461012,-458.22,0.00027671,7]
[384922189,1757627461022,-400.0,0.00027671,7]
[384922190,1757627461033,-1506.44,0.00027671,7]
[384922191,1757627461043,-408.27905369,0.00027671,7]
[384922192,1757627461052,-151.0,0.00027671,7]
[384922193,1757627461061,-400.0,0.00027671,7]
[384922194,1757627461070,-653.84,0.00027671,7]
[384922195,1757627461081,-1579.45,0.00027671,7]
[384922196,1757627461090,-400.0,0.00027671,7]
[384922197,1757627461100,-400.0,0.00027671,7]
[384922198,1757627461109,-400.0,0.00027671,7]
[384922199,1757627461118,-596.11,0.00027671,7]
[384922200,1757627461128,-151.0,0.00027671,7]
[384922201,1757627461137,-614.15,0.00027671,7]
[384922202,1757627461148,-400.0,0.00027671,7]
[384922203,1757627461158,-400.0,0.00027671,7]
[384922204,1757627461168,-400.0,0.00027671,7]
[384922205,1757627461177,-400.0,0.00027671,7]
[384922206,1757627461186,-400.0,0.00027671,7]
[384922207,1757627461196,-1013.76,0.00027671,7]
[384922208,1757627461206,-400.0,0.00027671,7]
[384922209,1757627461215,-400.0,0.00027671,7]
[384922210,1757627461227,-400.0,0.00027671,7]
[384922211,1757627461236,-400.0,0.00027671,7]
[384922212,1757627461246,-1714.22,0.00027671,7]
[384922213,1757627461255,-517.47,0.00027671,7]
[384922214,1757627461265,-1096.07,0.00027671,7]
[384922215,1757627461274,-400.0,0.00027671,7]
[384922216,1757627461284,-408.17443082,0.00027671,7]
[384922217,1757627461293,-400.0,0.00027671,7]
[384922218,1757627461306,-1253.03,0.00027671,7]
[384922219,1757627461316,-400.0,0.00027671,7]
[384922220,1757627461326,-400.0,0.00027671,7]
[384922221,1757627461335,-1145.97,0.00027671,7]
[384922222,1757627461345,-400.0,0.00027671,7]
[384922223,1757627461354,-400.0,0.00027671,7]
[384922224,1757627461364,-1745.67,0.00027671,7]
[384922225,1757627461374,-727.42,0.00027671,7]
[384922226,1757627461383,-400.0,0.00027671,7]
[384922227,1757627461393,-400.0,0.00027671,7]
[384922228,1757627461403,-400.0,0.00027671,7]
[384922229,1757627461412,-400.0,0.00027671,7]
[384922230,1757627461422,-400.0,0.00027671,7]
[384922231,1757627461432,-400.0,0.00027671,7]
[384922232,1757627461443,-400.0,0.00027671,7]
[384922233,1757627461452,-583.39,0.00027671,7]
[384922234,1757627461461,-400.0,0.00027671,7]
[384922235,1757627461470,-400.0,0.00027671,7]
[384922236,1757627461480,-400.0,0.00027671,7]
[384922237,1757627461490,-400.0,0.00027671,7]
[384922238,1757627461501,-247.903285,0.00027671,7]
[384922239,1757627461511,-576.54,0.00027671,7]
[384922240,1757627461520,-400.0,0.00027671,7]
[384922241,1757627461529,-1541.62,0.00027671,7]
[384922242,1757627461539,-400.0,0.00027671,7]
[384922243,1757627461548,-921.85,0.00027671,7]
[384922244,1757627461557,-426.23,0.00027671,7]
[384922245,1757627461567,-400.0,0.00027671,7]
[384922246,1757627461576,-151.0,0.00027671,7]
[384922247,1757627461585,-400.0,0.00027671,7]
[384922248,1757627461595,-427.30317001,0.00027671,7]
[384922249,1757627461604,-2304.65,0.00027671,7]
[384922250,1757627461614,-1433.65,0.00027671,7]
[384922251,1757627461623,-400.0,0.00027671,7]
[384922252,1757627461633,-400.0,0.00027671,7]
[384922253,1757627461642,-1278.47,0.00027671,7]
[384922254,1757627461651,-400.0,0.00027671,7]
[384922255,1757627461661,-400.0,0.00027671,7]
[384922256,1757627461670,-506.5,0.00027671,7]
[384922257,1757627461679,-400.0,0.00027671,7]
[384922258,1757627461689,-400.0,0.00027671,7]
[384922259,1757627461698,-1307.66,0.00027671,7]
[384922260,1757627461708,-400.0,0.00027671,7]
[384922261,1757627461718,-400.0,0.00027671,7]
[384922262,1757627461727,-400.0,0.00027671,7]
[384922263,1757627461735,-1245.35,0.00027671,7]
[384922264,1757627461744,-151.0,0.00027671,7]
[384922265,1757627461753,-400.0,0.00027671,7]
[384922266,1757627461763,-1371.0,0.00027671,7]
[384922267,1757627461773,-400.0,0.00027671,7]
[384922268,1757627461782,-400.0,0.00027671,7]
[384922269,1757627461791,-400.0,0.00027671,7]
[384922270,1757627461801,-400.0,0.00027671,7]
[384922271,1757627461810,-400.0,0.00027671,7]
[384922272,1757627461819,-400.0,0.00027671,7]
[384922273,1757627461828,-400.0,0.00027671,7]
[384922274,1757627461837,-506.24,0.00027671,7]
[384922275,1757627461847,-1050.18,0.00027671,7]
[384922276,1757627461856,-423.92359604,0.00027671,7]
[384922277,1757627461867,-400.0,0.00027671,7]
[384922278,1757627461876,-400.0,0.00027671,7]
[384922279,1757627461886,-1616.64,0.00027671,7]
[384922280,1757627461895,-1120.7,0.00027671,7]
[384922281,1757627461905,-1151.78,0.00027671,7]
[384922282,1757627461915,-521.28,0.00027671,7]
[384922283,1757627461924,-1013.69,0.00027671,7]
[384922284,1757627461933,-400.0,0.00027671,7]
[384922285,1757627461943,-400.0,0.00027671,7]
[384922286,1757627461952,-400.0,0.00027671,7]
[384922287,1757627461961,-151.853194,0.00027671,7]
[384922288,1757627461971,-400.0,0.00027671,7]
[384922289,1757627461982,-634.88,0.00027671,7]
[384922290,1757627461992,-400.0,0.00027671,7]
[384922291,1757627462001,-400.0,0.00027671,7]
[384922292,1757627462010,-2767.55,0.00027671,7]
[384922293,1757627462020,-1117.29,0.00027671,7]
[384922294,1757627462029,-422.28,0.00027671,7]
[384922295,1757627462038,-428.8,0.00027671,7]
[384922296,1757627462047,-151.0,0.00027671,7]
[384922297,1757627462056,-151.0,0.00027671,7]
[384922298,1757627462065,-151.0,0.00027671,7]
[384922299,1757627462075,-151.0,0.00027671,7]
[384922300,1757627462084,-230.197507,0.00027671,7]
[384922301,1757627462093,-216.835723,0.00027671,7]
[384922302,1757627462102,-254.627859,0.00027671,7]
[384922303,1757627462111,-400.0,0.00027671,7]
[384922304,1757627462120,-1735.26,0.00027671,7]
[384922305,1757627462130,-400.0,0.00027671,7]
[384922306,1757627462138,-400.0,0.00027671,7]
[384922307,1757627462147,-400.0,0.00027671,7]
[384922308,1757627462156,-400.0,0.00027671,7]
[384922309,1757627462165,-1678.88,0.00027671,7]
[384922310,1757627462175,-400.0,0.00027671,7]
[384922311,1757627462184,-522.94,0.00027671,7]
[384922312,1757627462194,-412.38,0.00027671,7]
[384922313,1757627462203,-752.82,0.00027671,7]
[384922314,1757627462212,-400.0,0.00027671,7]
[384922315,1757627462221,-400.0,0.00027671,7]
[384922316,1757627462231,-2172.72,0.00027671,7]
[384922317,1757627462240,-479.83,0.00027671,7]
[384922318,1757627462250,-400.0,0.00027671,7]
[384922319,1757627462259,-645.68,0.00027671,7]
[384922320,1757627462268,-1991.58,0.00027671,7]
[384922321,1757627462277,-684.67,0.00027671,7]
[384922322,1757627462287,-400.0,0.00027671,7]
[384922323,1757627462296,-400.0,0.00027671,7]
[384922324,1757627462310,-1865.74,0.00027671,7]
[384922325,1757627462320,-1236.15,0.00027671,7]
[384922326,1757627462329,-400.0,0.00027671,7]
[384922327,1757627462339,-703.53,0.00027671,7]
[384922328,1757627462348,-400.0,0.00027671,7]
[384922329,1757627462357,-2285.17,0.00027671,7]
[384922330,1757627462742,-400.0,0.00027671,7]
[384922331,1757627462753,-1603.43,0.00027671,7]
[384922332,1757627462763,-400.0,0.00027671,7]
[384922333,1757627462772,-400.0,0.00027671,7]
[384922334,1757627462782,-620.1,0.00027671,7]
[384922335,1757627462791,-1983.9,0.00027671,7]
[384922336,1757627462800,-453.81016365,0.00027671,7]
[384922337,1757627462810,-400.0,0.00027671,7]
[384922338,1757627462819,-2163.46,0.00027671,7]
[384922339,1757627462828,-400.0,0.00027671,7]
[384922340,1757627462839,-941.57,0.00027671,7]
[384922341,1757627462848,-400.0,0.00027671,7]
[384922342,1757627462857,-400.0,0.00027671,7]
[384922343,1757627462867,-538.51359724,0.00027671,7]
[384922344,1757627462876,-434.84,0.00027671,7]
[384922345,1757627462886,-537.34,0.00027671,7]
[384922346,1757627462896,-1569.39,0.00027671,7]
[384922347,1757627462905,-400.0,0.00027671,7]
[384922348,1757627462915,-400.0,0.00027671,7]
[384922349,1757627462924,-480.58438308,0.00027671,7]
[384922350,1757627462934,-931.18,0.00027671,7]
[384922351,1757627462945,-400.0,0.00027671,7]
[384922352,1757627462955,-1230.65,0.00027671,7]
[384922353,1757627462964,-2317.42,0.00027671,7]
[384922354,1757627462975,-535.67,0.00027671,7]
[384922355,1757627462987,-644.68,0.00027671,7]
[384922356,1757627462999,-1234.23,0.00027671,7]
[384922357,1757627463008,-919.77,0.00027671,7]
[384922358,1757627463017,-1771.81,0.00027671,7]
[384922359,1757627463027,-400.0,0.00027671,7]
[384922360,1757627463036,-411.2695607,0.00027671,7]
[384922361,1757627463045,-400.0,0.00027671,7]
[384922362,1757627463055,-151.0,0.00027671,7]
[384922363,1757627463064,-400.0,0.00027671,7]
[384922364,1757627463074,-400.0,0.00027671,7]
[384922365,1757627463084,-400.0,0.00027671,7]
[384922366,1757627463094,-508.25,0.00027671,7]
[384922367,1757627463103,-2325.79,0.00027671,7]
[384922368,1757627463113,-151.0,0.00027671,7]
[384922369,1757627463122,-212.172779,0.00027671,7]
[384922370,1757627463131,-1609.41,0.00027671,7]
[384922371,1757627463141,-568.33,0.00027671,7]
[384922372,1757627463151,-400.0,0.00027671,7]
[384922373,1757627463160,-816.93,0.00027671,7]
[384922374,1757627463170,-400.0,0.00027671,7]
[384922375,1757627463179,-1798.92,0.00027671,7]
[384922376,1757627463189,-1386.18,0.00027671,7]
[384922377,1757627463198,-1213.37,0.00027671,7]
[384922378,1757627463207,-400.0,0.00027671,7]
[384922379,1757627463217,-500.0,0.00027671,10]
[384922380,1757627463227,-500.0,0.00027671,10]
[384922381,1757627463236,-500.0,0.00027671,10]
[384922382,1757627463246,-400.0,0.00027671,7]
[384922383,1757627463256,-500.0,0.00027671,10]
[384922384,1757627463265,-500.0,0.00027671,10]
[384922385,1757627463275,-500.0,0.00027671,10]
[384922386,1757627463284,-500.0,0.00027671,10]
[384922387,1757627463294,-500.0,0.00027671,10]
[384922388,1757627463308,-400.0,0.00027671,7]
[384922389,1757627463318,-400.0,0.00027671,7]
[384922390,1757627463327,-1999.59,0.00027671,7]
[384922391,1757627463336,-1552.95,0.00027671,7]
[384922392,1757627463346,-400.0,0.00027671,7]
[384922393,1757627463356,-400.0,0.00027671,7]
[384922394,1757627463365,-403.06,0.00027671,7]
[384922395,1757627463376,-1732.83,0.00027671,7]
[384922396,1757627463386,-400.0,0.00027671,7]
[384922397,1757627463395,-400.0,0.00027671,7]
[384922398,1757627463404,-465.53,0.00027671,7]
[384922399,1757627463414,-400.0,0.00027671,7]
[384922400,1757627463423,-400.0,0.00027671,7]
[384922401,1757627463432,-400.0,0.00027671,7]
[384922402,1757627463441,-709.04,0.00027671,7]
[384922403,1757627463451,-955.01,0.00027671,7]
[384922404,1757627463460,-400.0,0.00027671,7]
[384922405,1757627463470,-151.0,0.00027671,7]
[384922406,1757627463480,-400.0,0.00027671,7]
[384922407,1757627463489,-151.0,0.00027671,7]
[384922408,1757627463498,-400.0,0.00027671,7]
[384922409,1757627463508,-400.0,0.00027671,7]
[384922410,1757627463518,-2037.8,0.00027671,7]
[384922411,1757627463527,-400.0,0.00027671,7]
[384922412,1757627463537,-400.0,0.00027671,7]
[384922413,1757627463546,-400.0,0.00027671,7]
[384922414,1757627463556,-400.0,0.00027671,7]
[384922415,1757627463565,-400.0,0.00027671,7]
[384922416,1757627463574,-1760.98,0.00027671,7]
[384922417,1757627463584,-1465.12,0.00027671,7]
[384922418,1757627463594,-897.82,0.00027671,7]
[384922419,1757627463603,-943.48,0.00027671,7]
[384922420,1757627463612,-400.0,0.00027671,7]
[384922421,1757627463621,-737.11,0.00027671,7]
[384922422,1757627463630,-674.73,0.00027671,7]
[384922423,1757627463639,-400.0,0.00027671,7]
[384922424,1757627463649,-666.9,0.00027671,7]
[384922425,1757627463659,-400.0,0.00027671,7]
[384922426,1757627463668,-400.0,0.00027671,7]
[384922427,1757627463678,-2358.03,0.00027671,7]
[384922428,1757627463687,-400.0,0.00027671,7]
[384922429,1757627463696,-400.0,0.00027671,7]
[384922430,1757627463706,-400.0,0.00027671,7]
[384922431,1757627463715,-1950.94,0.00027671,7]
[384922432,1757627463725,-2454.36,0.00027671,7]
[384922433,1757627463735,-400.0,0.00027671,7]
[384922434,1757627463745,-400.0,0.00027671,7]
[384922435,1757627463754,-400.0,0.00027671,7]
[384922436,1757627463764,-400.0,0.00027671,7]
[384922437,1757627463773,-400.0,0.00027671,7]
[384922438,1757627463783,-781.35,0.00027671,7]
[384922439,1757627463793,-151.0,0.00027671,7]
[384922440,1757627463802,-1589.11,0.00027671,7]
[384922441,1757627463812,-610.63,0.00027671,7]
[384922442,1757627463821,-1911.65,0.00027671,7]
[384922443,1757627463831,-645.89,0.00027671,7]
[384922444,1757627463841,-400.0,0.00027671,7]
[384922445,1757627463850,-400.0,0.00027671,7]
[384922446,1757627463860,-415.38530992,0.00027671,7]
[384922447,1757627463870,-400.0,0.00027671,7]
[384922448,1757627463879,-400.0,0.00027671,7]
[384922449,1757627463889,-429.42,0.00027671,7]
[384922450,1757627463899,-2211.08,0.00027671,7]
[384922451,1757627463909,-1761.27,0.00027671,7]
[384922452,1757627463918,-400.0,0.00027671,7]
[384922453,1757627463928,-1275.46,0.00027671,7]
[384922454,1757627463938,-400.0,0.00027671,7]
[384922455,1757627463948,-452.08,0.00027671,7]
[384922456,1757627463958,-903.15,0.00027671,7]
[384922457,1757627463968,-730.4,0.00027671,7]
[384922458,1757627463977,-1244.21,0.00027671,7]
[384922459,1757627463988,-493.12210978,0.00027671,7]
[384922460,1757627463998,-407.3644811,0.00027671,7]
[384922461,1757627464008,-400.0,0.00027671,7]
[384922462,1757627464018,-1272.64,0.00027671,7]
[384922463,1757627464027,-2147.52,0.00027671,7]
[384922464,1757627464037,-400.0,0.00027671,7]
[384922465,1757627464047,-1608.5,0.00027671,7]
[384922466,1757627464057,-399.97429778,0.00027671,7]
[384922467,1757627464066,-400.0,0.00027671,7]
[384922468,1757627464076,-400.0,0.00027671,7]
[384922469,1757627464086,-474.19,0.00027671,7]
[384922470,1757627464096,-400.0,0.00027671,2]
[384922471,1757627464106,-468.6,0.00027671,7]
[384922472,1757627464116,-400.0,0.00027671,7]
[384922473,1757627464125,-200.0,0.00027671,2]
[384922474,1757627464135,-726.05,0.00027671,7]
[384922475,1757627464144,-400.0,0.00027671,7]
[384922476,1757627464154,-1333.63,0.00027671,7]
[384922477,1757627464164,-2117.57,0.00027671,7]
[384922478,1757627464173,-2353.72,0.00027671,7]
[384922479,1757627464183,-500.85129133,0.00027671,7]
[384922480,1757627464192,-151.0,0.00027671,7]
[384922481,1757627464201,-400.0,0.00027671,7]
[384922482,1757627464211,-400.0,0.00027671,7]
[384922483,1757627464220,-410.31,0.00027671,7]
[384922484,1757627464230,-151.0,0.00027671,7]
[384922485,1757627464239,-400.0,0.00027671,7]
[384922486,1757627464249,-400.0,0.00027671,7]
[384922487,1757627464258,-400.0,0.00027671,7]
[384922488,1757627464268,-400.0,0.00027671,7]
[384922489,1757627464278,-792.77,0.00027671,7]
[384922490,1757627464287,-2010.24,0.00027671,7]
[384922491,1757627464297,-1805.19,0.00027671,7]
[384922492,1757627464311,-564.18,0.00027671,7]
[384922493,1757627464320,-400.0,0.00027671,7]
[384922494,1757627464330,-151.0,0.00027671,7]
[384922495,1757627464339,-151.0,0.00027671,7]
[384922496,1757627464349,-151.0,0.00027671,7]
[384922497,1757627464358,-1520.22,0.00027671,7]
[384922498,1757627464368,-151.0,0.00027671,7]
[384922499,1757627464378,-151.0,0.00027671,7]
[384922500,1757627464387,-400.0,0.00027671,7]
[384922501,1757627464396,-151.0,0.00027671,7]
[384922502,1757627464405,-151.0,0.00027671,7]
[384922503,1757627464415,-151.0,0.00027671,7]
[384922504,1757627464424,-281.919128,0.00027671,7]
[384922505,1757627464435,-825.64,0.00027671,7]
[384922506,1757627464445,-1290.72,0.00027671,7]
[384922507,1757627464457,-400.0,0.00027671,7]
[384922508,1757627464466,-1603.55,0.00027671,7]
[384922509,1757627464476,-213.639684,0.00027671,7]
[384922510,1757627464485,-151.902588,0.00027671,7]
[384922511,1757627464495,-532.61,0.00027671,7]
[384922512,1757627464504,-151.0,0.00027671,7]
[384922513,1757627464514,-400.0,0.00027671,7]
[384922514,1757627464524,-1459.31,0.00027671,7]
[384922515,1757627464535,-153.970632,0.00027671,7]
[384922516,1757627464544,-151.0,0.00027671,7]
[384922517,1757627464554,-2714.64,0.00027671,7]
[384922518,1757627464565,-151.0,0.00027671,7]
[384922519,1757627464577,-503.57262445,0.00027671,7]
[384922520,1757627464588,-151.0,0.00027671,7]
[384922521,1757627464598,-151.0,0.00027671,7]
[384922522,1757627464608,-151.0,0.00027671,7]
[384922523,1757627464619,-400.0,0.00027671,7]
[384922524,1757627464629,-151.0,0.00027671,7]
[384922525,1757627464639,-195.719712,0.00027671,7]
[384922526,1757627464649,-909.86,0.00027671,7]
[384922527,1757627464658,-1370.73,0.00027671,7]
[384922528,1757627464667,-2356.36,0.00027671,7]
[384922529,1757627464676,-820.52,0.00027671,7]
[384922530,1757627464685,-1552.2,0.00027671,7]
[384922531,1757627464694,-832.81,0.00027671,7]
[384922532,1757627464703,-980.62,0.00027671,7]
[384922533,1757627464713,-436.16,0.00027671,7]
[384922534,1757627464722,-400.0,0.00027671,7]
[384922535,1757627464731,-2368.21,0.00027671,7]
[384922536,1757627464740,-151.0,0.00027671,7]
[384922537,1757627464750,-235.695619,0.00027671,7]
[384922538,1757627464759,-2310.49,0.00027671,7]
[384922539,1757627464768,-751.05,0.00027671,7]
[384922540,1757627464778,-400.0,0.00027671,7]
[384922541,1757627464788,-521.56,0.00027671,7]
[384922542,1757627464798,-690.1,0.00027671,7]
[384922543,1757627464808,-151.0,0.00027671,7]
[384922544,1757627464819,-1138.65,0.00027671,7]
[384922545,1757627464828,-151.0,0.00027671,7]
[384922546,1757627464838,-400.0,0.00027671,7]
[384922547,1757627464847,-614.59,0.00027671,7]
[384922548,1757627464856,-151.0,0.00027671,7]
[384922549,1757627464865,-400.0,0.00027671,7]
[384922550,1757627464874,-1234.09,0.00027671,7]
[384922551,1757627464883,-204.462408,0.00027671,7]
[384922552,1757627464892,-1139.8,0.00027671,7]
[384922553,1757627464904,-400.0,0.00027671,7]
[384922554,1757627464915,-1357.28,0.00027671,7]
[384922555,1757627464926,-483.0,0.00027671,7]
[384922556,1757627464936,-2221.87,0.00027671,7]
[384922557,1757627464947,-400.0,0.00027671,7]
[384922558,1757627464957,-400.0,0.00027671,7]
[384922559,1757627464967,-764.53,0.00027671,7]
[384922560,1757627464978,-400.0,0.00027671,7]
[384922561,1757627464989,-400.0,0.00027671,7]
[384922562,1757627464998,-400.0,0.00027671,7]
[384922563,1757627465007,-893.59,0.00027671,7]
[384922564,1757627465017,-616.29,0.00027671,7]
[384922565,1757627465026,-497.07,0.00027671,7]